Cogmind - Beta 13 @@@ ROGUE MODE // 2024.05.30 @ 22:21:46 Player: Sionnis Result: Self-destructed Performance ------------- Evolutions (1) 500 Regions Visited (2) 400 Robots Destroyed (3) 15 Value Destroyed (34) 34 Prototype IDs (0) 0 Alien Tech Used (0) 0 Bonus (0) 0 TOTAL SCORE: 949 Bonus ------- None Cogmind --------- Core Integrity 229/400 Matter 121/300 Energy 18/100 System Corruption 0% Temperature Cool (0) Movement Core (100) Ox1 Location -9/Materials Parts ------- > --- POWER (1) -------- (None) > --- PROPULSION (3) --- VTOL Module > --- UTILITY (3) ------ Cooling System Signal Interpreter > --- WEAPON (2) ------- Mace Mace > --- INVENTORY (5) ---- VTOL Module EMP Blaster Mace Mace Peak State ------------ > --- POWER ------------ (None) > --- PROPULSION ------- VTOL Module VTOL Module VTOL Module > --- UTILITY ---------- Cooling System Signal Interpreter > --- WEAPON ----------- Mace Mace > --- INVENTORY -------- VTOL Module EMP Blaster Mace Mace [Rating: 13] Favorites ----------- Power None Propulsion VTOL Module Flight Unit VTOL Module Utility Signal Interpreter Device Cooling System Processor Signal Interpreter Weapon Mace Ballistic Gun Assault Rifle Impact Weapon Mace Build | -11 -10 -9 ------- Run | Yrd Mat Mat Slots Evolved 2 | . . 2 Power . | . . . Propulsion 1 | . . 1 Utility 1 | . . 1 Weapon . | . . . Parts Attached 10 | 1 3 6 Power . | . . . Engine . | . . . Core . | . . . Reactor . | . . . Propulsion 4 | . 2 2 Treads . | . . . Leg . | . . . Wheel . | . . . Hover . | . . . Flight 4 | . 2 2 Utility 2 | . . 2 Device 1 | . . 1 Storage . | . . . Processor 1 | . . 1 Hackware . | . . . Protection . | . . . Artifact . | . . . Weapon 4 | 1 1 2 Energy Gun . | . . . Energy Cannon . | . . . Ballistic Gun 2 | 1 1 . Ballistic Cannon . | . . . Launcher . | . . . Special Weapon . | . . . Impact Weapon 2 | . . 2 Slashing Weapon . | . . . Piercing Weapon . | . . . Special Melee Weapon . | . . . Unidentified Prototypes . | . . . Parts Lost 3 | . . 3 Power . | . . . Propulsion 3 | . . 3 Utility . | . . . Weapon . | . . . Highest Loss Streak 2 | . . 2 To Critical Strikes . | . . . Average Slot Usage (%) 55 | . 39 60 Flight 28 | . 11 33 Device 2 | . . 2 Processor 2 | . . 2 Ballistic Gun 14 | . 28 10 Impact Weapon 9 | . . 11 Naked Turns . | . . . Heaviest Build 6 | 2 5 6 Greatest Support 12 | 3 8 12 Greatest Overweight (x) 1 | . 1 1 Average Overweight (x) . | . . . Largest Inventory Capacity 5 | 5 5 5 Average Capacity 5 | 5 5 5 Most Carried 4 | . 2 4 Average Carried 2 | . . 2 Final Capacity 5 | 5 5 5 Final Carried 4 | . 2 4 Class Distribution -------------------- 66% | Sprinter 33% | Mutant Dominant Class ---------------- Mutant | -10/Materials Sprinter | -9/Materials Resources | -11 -10 -9 ----------- Run | Yrd Mat Mat Matter Collected 155 | 134 . 21 Remotely . | . . . Salvage Created 84 | . 20 64 Parts 2 | . 2 . Haulers Intercepted 1 | . . 1 Recyclers Shooed . | . . . Parts Field Recycled . | . . . Retrieved Matter . | . . . Parts Self-Destructed . | . . . Prevented . | . . . Kills | -11 -10 -9 ------- Run | Yrd Mat Mat Combat Hostiles Destroyed . | . . . Classes Destroyed 2 | . 1 1 Hauler 1 | . . 1 Watcher 2 | . 1 1 Best Kill Streak 1 | . 1 1 Combat Bots Only . | . . . Max Kills in Single Turn 1 | . 1 1 Gunslinging . | . . . Exploded . | . . . Melee . | . . . Uniques/NPCs Destroyed . | . . . Combat | -11 -10 -9 -------- Run | Yrd Mat Mat Hostile Shots Fired 82 | . . 82 Missed 42 | . . 42 Damage Taken 449 | . . 449 Core 171 | . . 171 Absorbed by Shields . | . . . Core Remaining (%) 100 | 100 100 . Volleys Fired 7 | . 1 6 Largest 2 | . 2 2 Hottest 43 | . 43 43 Shots Fired 14 | . 2 12 Gun 14 | . 2 12 Cannon . | . . . Launcher . | . . . Special . | . . . Kinetic 14 | . 2 12 Thermal . | . . . Explosive . | . . . Electromagnetic . | . . . Robot Hit Streak 4 | . 1 4 Robot Miss Streak 3 | . 1 3 Penetration Max . | . . . Secondary Targets . | . . . Shots Hit Robots 10 | . 1 9 Core Hits 3 | . 1 2 Critical Kills . | . . . Critical Parts Destroyed . | . . . Critical Strikes . | . . . Melee Attacks 4 | . . 4 Impact 4 | . . 4 Slashing . | . . . Piercing . | . . . Sneak Attacks 2 | . . 2 Combat Hostiles . | . . . Follow-up Attacks 1 | . . 1 Damage Inflicted 225 | . 15 210 Guns 106 | . 15 91 Cannons . | . . . Explosions . | . . . Melee 119 | . . 119 Ramming . | . . . Kinetic 106 | . 15 91 Thermal . | . . . Explosive . | . . . Electromagnetic . | . . . Impact 119 | . . 119 Slashing . | . . . Piercing . | . . . Highest Corruption . | . . . Average Corruption . | . . . Corruption Purged . | . . . Corruption Blocked . | . . . Overload Shots . | . . . Overflow Damage 26 | . . 26 Projectiles . | . . . Explosions . | . . . Melee 26 | . . 26 Knockbacks . | . . . Impact . | . . . Kinetic . | . . . Secondary . | . . . Self-Inflicted Damage . | . . . Shots . | . . . Rammed . | . . . Targets Rammed . | . . . Kicked . | . . . Crushed . | . . . Highest Temperature 2 | . . 2 Average Temperature 2 | . . 2 Received Heat Transfer 135 | . . 135 Siege Activations . | . . . Robots Corrupted . | . . . Combat Hostiles . | . . . Parts Fried . | . . . Impact Corruptions 1 | . . 1 Robots Melted . | . . . Combat Hostiles . | . . . Parts Melted . | . . . Heat Transferred . | . . . Parts Sabotaged . | . . . Parts Stolen . | . . . Parts Stripped . | . . . Power Chain Reactions . | . . . Alert | -11 -10 -9 ------- Run | Yrd Mat Mat Peak Influence 392 | . 37 392 Initial 15 | . . 15 Average 123 | . 11 162 Maximum Alert Level 1 | . . 1 Low Security (%) 74 | 100 100 65 Level 1 25 | . . 34 Level 2 . | . . . Level 3 . | . . . Level 4 . | . . . Level 5 . | . . . High Security . | . . . Max Security . | . . . Squads Dispatched 2 | . . 2 Investigation 1 | . . 1 Extermination . | . . . Reinforcement 1 | . . 1 Assault . | . . . Garrison . | . . . Intercept . | . . . Searches Triggered . | . . . Construction Impeded . | . . . Haulers Reinforced . | . . . Active Scanning Responses . | . . . Cargo Convoy Interrupts . | . . . Stealth | -11 -10 -9 --------- Run | Yrd Mat Mat Distress Signals 1 | . . 1 Communications Jammed . | . . . Distress Signals . | . . . Times Spotted 32 | . 3 29 Peak Tracking Total 17 | . 3 17 Tactical Retreats 6 | . . 6 Traps | -11 -10 -9 ------- Run | Yrd Mat Mat Traps Triggered . | . . . Indirectly . | . . . Trap Hack Attempts . | . . . Triggered . | . . . Disarmed . | . . . Reprogrammed . | . . . Reused . | . . . Traps Extracted . | . . . Installed . | . . . Triggered . | . . . Machines | -11 -10 -9 ---------- Run | Yrd Mat Mat Machines Disabled . | . . . Max in Single Turn . | . . . Machines Repaired . | . . . Machines Dismantled . | . . . Machines Sabotaged . | . . . Overloaded Fab Kills . | . . . Hacking | -11 -10 -9 --------- Run | Yrd Mat Mat Machines Accessed 4 | . 1 3 Terminals 4 | . 1 3 Fabricators . | . . . Repair Stations . | . . . Recycling Units . | . . . Scanalyzers . | . . . Garrison Access . | . . . Total Hacks 15 | . 3 12 Successful 6 | . 1 5 Failed 9 | . 2 7 Catastrophic 4 | . . 4 Database Lockouts . | . . . Manual 15 | . 3 12 Terminals 15 | . 3 12 Fabricators . | . . . Repair Stations . | . . . Recycling Units . | . . . Scanalyzers . | . . . Garrison Access . | . . . Terminal Hacks 2 | . 1 1 Robot Analysis 1 | . 1 . Level Access Points 1 | . . 1 Fabricator Hacks . | . . . Repair Station Hacks . | . . . Recycling Unit Hacks . | . . . Scanalyzer . | . . . Garrison Access Hacks . | . . . Unauthorized Hacks 4 | . . 4 Terminals 4 | . . 4 Assimilate 1 | . . 1 Botnet 2 | . . 2 Operators 1 | . . 1 Fabricators . | . . . Repair Stations . | . . . Recycling Units . | . . . Scanalyzers . | . . . Garrison Access . | . . . Data Cores Recovered . | . . . Used . | . . . Hacking Detections 4 | . 1 3 Full Trace Events 3 | . . 3 Feedback Events . | . . . Feedback Blocked . | . . . Robot Schematics Acquired . | . . . Robots Built . | . . . Authchips . | . . . Time . | . . . Total Robot Build Rating . | . . . Part Schematics Acquired . | . . . Parts Built . | . . . Authchips . | . . . Time . | . . . Total Part Build Rating . | . . . Parts Repaired . | . . . Time . | . . . Parts Recycled . | . . . Recycled Matter . | . . . Retrieved Matter . | . . . Retrieved Components . | . . . Parts Scanalyzed . | . . . Part Schematics Acquired . | . . . Parts Damaged . | . . . Bothacking | -11 -10 -9 ------------ Run | Yrd Mat Mat Used RIF Installer . | . . . Robots Hacked . | . . . Non-combat . | . . . Combat . | . . . Robot Hacks Applied . | . . . Relay Couplers Released . | . . . Fabnet Peak Effective % . | . . . Robots Rewired . | . . . Allies Hacked . | . . . Hacks Repelled . | . . . Allies | -11 -10 -9 -------- Run | Yrd Mat Mat Total Allies 1 | . . 1 Largest Group 1 | . . 1 Highest-Rated Group 10 | . . 10 Highest-Rated Ally 10 | . . 10 Total Orders . | . . . Ally Attacks . | . . . Total Damage . | . . . Kills . | . . . Allies Corrupted . | . . . Allies Melted . | . . . Intel | -11 -10 -9 ------- Run | Yrd Mat Mat Robot Analysis Total 1 | . 1 . Derelict Logs Recovered . | . . . Drone Launches . | . . . Drone Recoveries . | . . . Exploration | -11 -10 -9 ------------- Run | Yrd Mat Mat Turns Passed 238 | 11 50 177 Spaces Moved 491 | 20 65 406 Core 51 | 20 30 1 Treads . | . . . Legs . | . . . Wheels . | . . . Hover . | . . . Flight 440 | . 35 405 Fastest Speed 29 | 50 32 29 Average Speed 34 | 50 61 29 Slowest Speed 115 | 50 115 100 Overloaded Moves . | . . . Propulsion Burnouts . | . . . Robots Hopped 11 | . . 11 Cave-ins Triggered . | . . . Exploration Rate (%) 23 | 3 23 43 Regions Visited 2 Branch Regions . Pre-discovered Areas . | . . . Known Exits Taken . | . . . Unknown Exits Taken 2 | 1 1 . Scrap Searched . | . . . Spaces Dug 2 | . . 2 Terrain Destroyed 2 | . . 2 Melee 2 | . . 2 Projectile . | . . . AOE . | . . . Terrain Rammed . | . . . Walls Destroyed . | . . . Machines Disabled . | . . . Actions | -11 -10 -9 --------- Run | Yrd Mat Mat Total 525 | 20 70 435 Wait 19 | . . 19 Move 468 | 19 64 385 Hop 10 | . . 10 Pick Up 6 | . 2 4 Fast Attach 8 | 1 3 4 Attach 2 | . . 2 Detach . | . . . Swap . | . . . Drop 2 | . . 2 Fire 7 | . 1 6 Melee 3 | . . 3 Ram . | . . . Kick . | . . . Crush . | . . . Escape Stasis . | . . . Rewire . | . . . Trap . | . . . Miscellaneous . | . . . Route ------- -11/Scrapyard -10/Materials -9/Materials (discovered 4 exits: *Mat x3 / *Sto) History --------- Turn | Location | Event 5 | -11/Scrapyard | Discovered new exit (range 15) 12 | -11/Scrapyard | Entered Materials 58 | -10/Materials | Discovered new exit (range 12) 62 | -10/Materials | Entered another Materials area 62 | -9/Materials | Evolved 2 slots: Propulsion x1, Utility x1 181 | -9/Materials | Identified exit to Materials 213 | -9/Materials | Discovered new exit (range 11) 226 | -9/Materials | Identified exit to Storage 239 | -9/Materials | Self-destructed Last Messages --------------- 00186_ Technician 2a reveals location of Alarm Trap. 00187_ Technician 2a destroyed. 00190_ K-01 Serf collects debris. 00194_ Acquired Signal Interpreter. 00194_ K-01 Serf collects debris. 00196_ Acquired Cooling System. 00200_ T-07 Excavator is excavating. 00200_ VTOL Module destroyed. 00204_ T-07 Excavator is excavating. 00205_ K-01 Serf cleans the Terminal. 00208_ T-07 Excavator is excavating. 00210_ W-16 Scout sends out distress signal. 00212_ T-07 Excavator is excavating. 00213_ EXIT=FOUND 00225_ Critical hit (Burn: +37). 00225_ S-10 Pest destroyed. 00226_ EXIT=IDENTIFIED: STORAGE 00226_ Acquired VTOL Module. 00234_ VTOL Module destroyed. Map ----- +----------------------------------------------------+ | ?????????# ###?????????????????????????????????? | | ?????????# # #?????????????????????????????????? | | ?????????# #?????????????????????????????????? | | ?????????# ###?????????????????????????????????? | | ?????????# #???????????????????????????????????? | | ?????????# #???????????????????????????????????? | | ?????????# #???????????????????????????????????? | | ????####?# #???????????????????????????????????? | | ???? #?# #???????????????????????????????????? | | ???" ### ##??????????????????????????????????? | | ???" ## #??????????????????????????????????? | | ???" ## #??????????????????????????????????? | | ??? ## T +??????????????????????????????????? | | ???" ## #??????????????????????????????????? | | ???" ## #??????????????????????????????????? | | ???" ?### ###??????????????????????????????????? | | ??? ????# #????????????????????????????????????? | | ####/###### #######??????????????????????????????? | | # ???????????????????????? | | # #######################????????????????????? | | #???????????# #????????????????????? | | # #?????####### #????????????????????? | | # ####### # #????????????????????? | | # g # ]]! ##???????????????????? | | # = > s/s ]]! Y#???????????????????? | | # *%= # ]]@ #????????????????????? | | ##########+## # #????????????????????? | | ??# ## ## #????????????????????? | | ??# ## ############????????????????????? | | ??# ## #???????????????????????????????? | | ??# """ ## #???????????????????????????????? | | ??# " " """ ## #???????????????????????????????? | | ??# "R" """ ## #???????????????????????????????? | | ??# """ ## #???????????????????????????????? | | ??# ## #???????????????????????????????? | | ??#?########## < #???????????????????????????????? | | ?????????????# #???????????????????????????????? | | ?????????????#####???????????????????????????????? | | ?????????????????????????????????????????????????? | | ?????????????????????????????????????????????????? | | ?????????????????????????????????????????????????? | | ?????????????????????????????????????????????????? | | ?????????????????????????????????????????????????? | | | | | | | | | | | | | | | +----------------------------------------------------+ Best States ------------- Heat Dissipation 50 Energy Generation 5 Energy Capacity 100 Matter Stores 214 Matter Capacity 300 Sight Range 16 Terrain Scan Density 10 Evasion (%) 64 Item Schematics ----------------- None Robot Schematics ------------------ None Fabricated ------------ Nothing Alien Tech Used ----------------- None Achievements -------------- None Challenges ------------ None Game ------ Seed Gottagofast Manual? 1 Play Time 00:09:38 Cumulative 141.2 hours Start 2024.05.30 @ 21:32:31 End 2024.05.30 @ 22:21:46 Sessions 1 Manual Loads 0 Difficulty Rogue Special Mode None Game No. 126 Rogue 126 Adventurer 0 Explorer 0 Win Type - Total 4 Types 3/0/0/1/0/0/0/0/0 Lore% 64 Gallery% 76 Achievement% 57 Wizard Run 0 Options --------- Layout 1 ASCII 0 Keyboard 0 Movement Numpad Keybinds 0 Fullscreen 1 Font 24/Smallcaps Map View 50x35 Zoom Use 0% Tactical HUD 1 Map Filters NONE Filters NONE Steam 1 RUN: 5a46c3c1-adb3-4256-b3d2-7b75eb152220